fUSD/lending_fUSD_20240425
["ID","MTS","AMOUNT","RATE_DAILY","PERIOD"]
[323561138,1714085491847,-500.0,0.00012328,2]
[323561139,1714085491857,-500.0,0.00012328,2]
[323561140,1714085491867,-500.0,0.00012328,2]
[323561141,1714085491877,-547.46,0.00012328,2]
[323561142,1714085491887,-1214.77,0.00012328,2]
[323561143,1714085491897,-580.35,0.00012328,2]
[323561144,1714085491908,-959.67,0.00012328,2]
[323561145,1714085491918,-1214.98,0.00012328,2]
[323561146,1714085491929,-500.0,0.00012328,2]
[323561147,1714085491940,-1257.77,0.00012328,2]
[323561148,1714085491951,-1160.75,0.00012328,2]
[323561149,1714085491962,-500.0,0.00012328,2]
[323561150,1714085491973,-500.0,0.00012328,2]
[323561151,1714085491986,-510.95109958,0.00012328,2]
[323561152,1714085491997,-500.0,0.00012328,2]
[323561153,1714085492006,-500.0,0.00012328,2]
[323561154,1714085492017,-500.0,0.00012328,2]
[323561155,1714085492027,-500.0,0.00012328,2]
[323561156,1714085492037,-500.0,0.00012328,2]
[323561157,1714085492047,-678.82,0.00012328,2]
[323561158,1714085492059,-500.0,0.00012328,2]
[323561159,1714085492070,-1162.58,0.00012328,2]
[323561160,1714085492081,-500.0,0.00012328,2]
[323561161,1714085492092,-1677.5,0.00012328,2]
[323561162,1714085492102,-500.0,0.00012328,2]
[323561163,1714085492112,-500.0,0.00012328,2]
[323561164,1714085492122,-500.0,0.00012328,2]
[323561165,1714085492133,-500.0,0.00012328,2]
[323561166,1714085492143,-500.0,0.00012328,2]
[323561167,1714085492154,-500.0,0.00012328,2]
[323561168,1714085492165,-500.0,0.00012328,2]
[323561169,1714085492177,-500.0,0.00012328,2]
[323561170,1714085492188,-500.0,0.00012328,2]
[323561171,1714085492200,-1963.2,0.00012328,2]
[323561172,1714085492212,-500.0,0.00012328,2]
[323561173,1714085492223,-500.0,0.00012328,2]
[323561174,1714085492233,-949.39,0.00012328,2]
[323561175,1714085492244,-222.99303092,0.00012328,2]
[323561176,1714085492254,-1358.37,0.00012328,2]
[323561177,1714085492263,-1842.75,0.00012328,2]
[323561178,1714085492274,-500.0,0.00012328,2]
[323561179,1714085492284,-597.0,0.00012328,2]
[323561180,1714085492294,-500.0,0.00012328,2]
[323561181,1714085492304,-500.0,0.00012328,2]
[323561182,1714085492314,-500.0,0.00012328,2]
[323561183,1714085492324,-500.0,0.00012328,2]
[323561184,1714085492335,-1218.91,0.00012328,2]
[323561185,1714085492344,-500.0,0.00012328,2]
[323561186,1714085492355,-500.0,0.00012328,2]
[323561187,1714085492366,-500.0,0.00012328,2]
[323561188,1714085492376,-18817.42,0.00012328,2]
[323561189,1714085492388,-500.0,0.00012328,2]
[323561190,1714085492400,-500.0,0.00012328,2]
[323561191,1714085492410,-1467.01,0.00012328,2]
[323561192,1714085492421,-500.0,0.00012328,2]
[323561193,1714085492431,-845.36,0.00012328,2]
[323561194,1714085492441,-2011.09,0.00012328,2]
[323561195,1714085492453,-1133.23,0.00012328,2]
[323561196,1714085492463,-413.371035,0.00012328,2]
[323561197,1714085492474,-555.91,0.00012328,2]
[323561198,1714085492485,-1244.48,0.00012328,2]
[323561199,1714085492496,-563.44,0.00012328,2]
[323561200,1714085492507,-2202.75,0.00012328,2]
[323561201,1714085492517,-500.0,0.00012328,2]
[323561202,1714085492528,-500.0,0.00012328,2]
[323561203,1714085492538,-500.0,0.00012328,2]
[323561204,1714085492549,-413.371035,0.00012328,2]
[323561205,1714085492560,-500.0,0.00012328,2]
[323561206,1714085492571,-500.0,0.00012328,2]
[323561207,1714085492581,-582.63,0.00012328,2]
[323561208,1714085492591,-1325.13,0.00012328,2]
[323561209,1714085492602,-1305.74,0.00012328,2]
[323561210,1714085492612,-1250.46,0.00012328,2]
[323561211,1714085492622,-580.53,0.00012328,2]
[323561212,1714085492632,-500.0,0.00012328,2]
[323561213,1714085492642,-789.03,0.00012328,2]
[323561214,1714085492652,-537.77,0.00012328,2]
[323561215,1714085492663,-7182.33,0.00012328,2]
[323561216,1714085492674,-500.0,0.00012328,2]
[323561217,1714085492684,-1695.58,0.00012328,2]
[323561218,1714085492696,-500.0,0.00012328,2]
[323561219,1714085492705,-150.0,0.00012328,2]
[323561220,1714085492716,-554.02,0.00012328,2]
[323561221,1714085492726,-500.0,0.00012328,2]
[323561222,1714085492736,-500.0,0.00012328,2]
[323561223,1714085492747,-500.0,0.00012328,2]
[323561224,1714085492757,-500.0,0.00012328,2]
[323561225,1714085492767,-500.0,0.00012328,2]
[323561226,1714085492777,-500.0,0.00012328,2]
[323561227,1714085492788,-500.0,0.00012328,2]
[323561228,1714085492797,-580.07,0.00012328,2]
[323561229,1714085492807,-1058.67,0.00012328,2]
[323561230,1714085492817,-625.88,0.00012328,2]
[323561231,1714085492826,-500.0,0.00012328,2]
[323561232,1714085492835,-731.33,0.00012328,2]
[323561233,1714085492845,-1016.54,0.00012328,2]
[323561234,1714085492854,-530.46,0.00012328,2]
[323561235,1714085492864,-500.0,0.00012328,2]
[323561236,1714085492873,-500.0,0.00012328,2]
[323561237,1714085492882,-971.27,0.00012328,2]
[323561238,1714085492892,-500.0,0.00012328,2]
[323561239,1714085492901,-500.0,0.00012328,2]
[323561240,1714085492910,-500.0,0.00012328,2]
[323561241,1714085492919,-500.0,0.00012328,2]
[323561242,1714085492929,-500.0,0.00012328,2]
[323561243,1714085492939,-500.0,0.00012328,2]
[323561244,1714085492949,-500.0,0.00012328,2]
[323561245,1714085492959,-500.0,0.00012328,2]
[323561246,1714085492970,-3672.06,0.00012328,2]
[323561247,1714085492982,-500.0,0.00012328,2]
[323561248,1714085492991,-500.0,0.00012328,2]
[323561249,1714085493002,-500.0,0.00012328,2]
[323561250,1714085493011,-1333.15,0.00012328,2]
[323561251,1714085493021,-1032.25,0.00012328,2]
[323561252,1714085493032,-500.0,0.00012328,2]
[323561253,1714085493042,-500.0,0.00012328,2]
[323561254,1714085493052,-336.24829692,0.00012328,2]
[323561255,1714085493065,-5219.88,0.00012328,2]
[323561256,1714085493075,-648.29,0.00012328,2]
[323561257,1714085493085,-500.0,0.00012328,2]
[323561258,1714085493095,-743.26,0.00012328,2]
[323561259,1714085493104,-1109.64,0.00012328,2]
[323561260,1714085493114,-500.0,0.00012328,2]
[323561261,1714085493124,-579.59,0.00012328,2]
[323561262,1714085493135,-500.0,0.00012328,2]
[323561263,1714085493145,-671.43,0.00012328,2]
[323561264,1714085493155,-500.0,0.00012328,2]
[323561265,1714085493165,-573.08,0.00012328,2]
[323561266,1714085493175,-724.71,0.00012328,2]
[323561267,1714085493184,-500.0,0.00012328,2]
[323561268,1714085493195,-500.0,0.00012328,2]
[323561269,1714085493204,-500.0,0.00012328,2]
[323561270,1714085493214,-500.0,0.00012328,2]
[323561271,1714085493224,-500.0,0.00012328,2]
[323561272,1714085493234,-500.0,0.00012328,2]
[323561273,1714085493244,-513.11,0.00012328,2]
[323561274,1714085493253,-500.0,0.00012328,2]
[323561275,1714085493263,-1073.52,0.00012328,2]
[323561276,1714085493273,-500.0,0.00012328,2]
[323561277,1714085493283,-500.0,0.00012328,2]
[323561278,1714085493292,-500.0,0.00012328,2]
[323561279,1714085493301,-500.0,0.00012328,2]
[323561280,1714085493311,-1397.21,0.00012328,2]
[323561281,1714085493321,-500.0,0.00012328,2]
[323561282,1714085493331,-500.0,0.00012328,2]
[323561283,1714085493341,-500.0,0.00012328,2]
[323561284,1714085493350,-1072.42,0.00012328,2]
[323561285,1714085493359,-1599.52,0.00012328,2]
[323561286,1714085493369,-779.68,0.00012328,2]
[323561287,1714085493379,-522.24,0.00012328,2]
[323561288,1714085493389,-548.35,0.00012328,2]
[323561289,1714085493399,-500.0,0.00012328,2]
[323561290,1714085493409,-500.0,0.00012328,2]
[323561291,1714085493419,-500.0,0.00012328,2]
[323561292,1714085493430,-2788.6,0.00012328,2]
[323561293,1714085493440,-1749.46,0.00012328,2]
[323561294,1714085493451,-500.0,0.00012328,2]
[323561295,1714085493461,-500.0,0.00012328,2]
[323561296,1714085493471,-500.0,0.00012328,2]
[323561297,1714085493481,-500.0,0.00012328,2]
[323561298,1714085493491,-500.0,0.00012328,2]
[323561299,1714085493500,-562.5,0.00012328,2]
[323561300,1714085493510,-2017.13,0.00012328,2]
[323561301,1714085493520,-598.57,0.00012328,2]
[323561302,1714085493530,-2064.28,0.00012328,2]
[323561303,1714085493540,-500.0,0.00012328,2]
[323561304,1714085493550,-590.44,0.00012328,2]
[323561305,1714085493561,-556.53,0.00012328,2]
[323561306,1714085493570,-787.32,0.00012328,2]
[323561307,1714085493581,-706.77,0.00012328,2]
[323561308,1714085493594,-500.0,0.00012328,2]
[323561309,1714085493606,-798.43,0.00012328,2]
[323561310,1714085493619,-500.0,0.00012328,2]
[323561311,1714085493632,-500.0,0.00012328,2]
[323561312,1714085493642,-963.63,0.00012328,2]
[323561313,1714085493654,-500.0,0.00012328,2]
[323561314,1714085493666,-906.7,0.00012328,2]
[323561315,1714085493679,-500.0,0.00012328,2]
[323561316,1714085493690,-1927.39,0.00012328,2]
[323561317,1714085493703,-500.0,0.00012328,2]
[323561318,1714085493715,-816.81,0.00012328,2]
[323561319,1714085493727,-569.31,0.00012328,2]
[323561320,1714085493741,-3707.93,0.00012328,2]
[323561321,1714085493754,-500.0,0.00012328,2]
[323561322,1714085493765,-1322.29,0.00012328,2]
[323561323,1714085493778,-1098.08,0.00012328,2]
[323561324,1714085493791,-500.0,0.00012328,2]
[323561325,1714085493805,-513.07,0.00012328,2]
[323561326,1714085493818,-733.35,0.00012328,2]
[323561327,1714085493830,-500.0,0.00012328,2]
[323561328,1714085493842,-500.0,0.00012328,2]
[323561329,1714085493856,-500.0,0.00012328,2]
[323561330,1714085493870,-1378.88,0.00012328,2]
[323561331,1714085493883,-680.2,0.00012328,2]
[323561332,1714085493894,-535.03,0.00012328,2]
[323561333,1714085493906,-500.0,0.00012328,2]
[323561334,1714085493921,-500.0,0.00012328,2]
[323561335,1714085493934,-4284.78,0.00012328,2]
[323561336,1714085493948,-500.0,0.00012328,2]
[323561337,1714085493962,-500.0,0.00012328,2]
[323561338,1714085493979,-500.0,0.00012328,2]
[323561339,1714085493991,-500.0,0.00012328,2]
[323561340,1714085494003,-500.0,0.00012328,2]
[323561341,1714085494015,-1565.85,0.00012328,2]
[323561342,1714085494028,-500.0,0.00012328,2]
[323561343,1714085494041,-500.0,0.00012328,2]
[323561344,1714085494055,-500.0,0.00012328,2]
[323561345,1714085494068,-500.0,0.00012328,2]
[323561346,1714085494083,-1616.55,0.00012328,2]
[323561347,1714085494096,-1417.61,0.00012328,2]
[323561348,1714085494109,-500.0,0.00012328,2]
[323561349,1714085494122,-895.77,0.00012328,2]
[323561350,1714085494136,-500.0,0.00012328,2]
[323561351,1714085494147,-500.0,0.00012328,2]
[323561352,1714085494159,-1487.0,0.00012328,2]
[323561353,1714085494170,-500.0,0.00012328,2]
[323561354,1714085494182,-6515.85,0.00012328,2]
[323561355,1714085494194,-500.0,0.00012328,2]
[323561356,1714085494209,-1222.62,0.00012328,2]
[323561357,1714085494221,-500.0,0.00012328,2]
[323561358,1714085494232,-500.0,0.00012328,2]
[323561359,1714085494246,-500.0,0.00012328,2]
[323561360,1714085494259,-500.0,0.00012328,2]
[323561361,1714085494271,-3281.28,0.00012328,2]
[323561362,1714085494283,-500.0,0.00012328,2]
[323561363,1714085494294,-595.02,0.00012328,2]
[323561364,1714085494307,-658.22,0.00012328,2]
[323561365,1714085494320,-675.47,0.00012328,2]
[323561366,1714085494332,-685.61,0.00012328,2]
[323561367,1714085494344,-557.8,0.00012328,2]
[323561368,1714085494356,-20193.31,0.00012328,2]
[323561369,1714085494369,-500.0,0.00012328,2]
[323561370,1714085494381,-560.61,0.00012328,2]
[323561371,1714085494393,-1428.61,0.0001237,2]
[323561372,1714085494406,-558.6,0.0001245,2]
[323561373,1714085494419,-273.99,0.00012458,2]
[323561374,1714085494431,-7083.8405188,0.00012474,2]
[323561375,1714085494443,-1623559.80133417,0.0001248,2]
[323561376,1714085495097,-1889.08592415,0.0001248,2]
[323561377,1714085495112,-4829.15087214,0.0001248,2]
[323561378,1714085495127,-690.0,0.0001248,2]
[323561379,1714085495141,-765.0266161,0.0001248,2]
[323561380,1714085495155,-3159.3085,0.0001248,2]
[323561381,1714085495236,-500.0,0.00011232,2]
[323561382,1714085495248,-1566.21856474,0.0001248,2]
[323561383,1714085495262,-550.955965,0.0001248,2]
[323561384,1714085498268,-500.0,0.00010958,2]
[323561385,1714085498277,-500.0,0.00010958,2]
[323561386,1714085498288,-500.0,0.00010958,2]
[323561387,1714085498299,-500.0,0.00010958,2]
[323561388,1714085498310,-500.0,0.00010958,2]
[323561389,1714085498320,-967.84164303,0.00011231,2]
[323561390,1714085498331,-500.0,0.00011232,2]
[323561391,1714085498341,-500.0,0.00011232,2]
[323561392,1714085498351,-298.72,0.00011232,2]
[323561393,1714085498362,-500.0,0.00011232,2]
[323561394,1714085498372,-500.0,0.00011506,2]
[323561395,1714085498383,-500.0,0.00011506,2]
[323561396,1714085498393,-500.0,0.00011506,2]
[323561397,1714085498404,-500.0,0.00011506,2]
[323561398,1714085498414,-500.0,0.0001178,2]
[323561399,1714085498424,-500.0,0.0001178,2]
[323561400,1714085498435,-500.0,0.0001178,2]
[323561401,1714085498445,-500.0,0.0001178,2]
[323561402,1714085498457,-500.0,0.00012054,2]
[323561403,1714085498467,-500.0,0.00012054,2]
[323561404,1714085498477,-500.0,0.00012054,2]
[323561405,1714085498486,-500.0,0.00012328,2]
[323561406,1714085498497,-500.0,0.00012328,2]
[323561407,1714085498507,-138848.20892797,0.0001248,2]
[323561408,1714085498621,-236.24,0.00012054,2]
[323561409,1714085498631,-156.43559406,0.0001248,2]
[323561410,1714085498651,-37042.81570225,0.0001248,2]
[323561411,1714085500369,495994.53,8.219e-05,2]
[323561412,1714085500399,50244.64208408,8.219e-05,2]
[323561413,1714085512757,-150.14009284,0.00010552,2]
[323561415,1714085658256,-150.0,0.00010491,2]
[323561416,1714085882354,150.0,8.219e-05,2]
[323561417,1714085882379,628.27,8.219e-05,2]
[323561419,1714086378540,777.36,8.219e-05,2]
[323561428,1714086632083,-414.41284543,9.787e-05,2]
[323561429,1714086632093,-213.94764815,9.787e-05,2]
[323561430,1714086632103,-304.30834737,9.787e-05,2]
[323561431,1714086632112,-424.54664826,9.787e-05,2]
[323561432,1714086632121,-1645.02084355,9.788e-05,2]
[323561433,1714086632133,-9313.21597719,9.788e-05,2]
[323561434,1714086632144,-364.18813852,9.788e-05,2]
[323561435,1714086632155,-1087.10900317,9.788e-05,2]
[323561436,1714086632190,-3549.66154191,9.788e-05,2]
[323561437,1714086632200,-8542.89999,9.788e-05,2]
[323561438,1714086632251,-2723.75840732,9.788e-05,2]
[323561439,1714086632278,-1214.03923066,9.788e-05,2]
[323561440,1714086632289,-1474.09241909,9.788e-05,2]
[323561441,1714086632313,-510.04241426,9.788e-05,2]
[323561450,1714086637646,-244.89202381,9.787e-05,2]
[323561451,1714086637655,-1215.18507721,9.788e-05,2]
[323561452,1714086637667,-358.33485164,9.788e-05,2]
[323561453,1714086637678,-7272.72456,9.788e-05,2]
[323561454,1714086637722,-646781.15043246,9.788e-05,2]
[323561455,1714086637731,-585361.65919417,9.789e-05,2]
[323561456,1714086637807,-7206.88958896,9.789e-05,2]
[323561457,1714086637820,-573.2828905,9.789e-05,2]
[323561458,1714086637832,-3713.37619975,9.789e-05,2]
[323561459,1714086637844,-5984.0,9.789e-05,2]
[323561460,1714086637936,-139777.77932162,9.789e-05,2]
[323561461,1714086637945,-205.84,9.789e-05,2]
[323561462,1714086637954,-507.31,9.789e-05,2]
[323561463,1714086637964,-5365.4942,9.818e-05,2]
[323561464,1714086637973,-1000.0,9.92e-05,2]
[323561465,1714086637983,-1170.33,9.93e-05,2]
[323561466,1714086637992,-15913.53,9.93e-05,2]
[323561467,1714086638001,-250.0,9.94e-05,2]
[323561468,1714086638010,-500.0,0.0001,2]
[323561469,1714086638020,-3164.50993962,0.0001,2]
[323561471,1714086638029,-161.33,0.00010024,2]
[323561472,1714086638038,-168.52611107,0.00010452,2]
[323561474,1714086638048,-150.00799355,0.00010452,2]
[323561476,1714086638057,-3074.69220668,0.00010452,2]
[323561479,1714086638066,-777.36,0.0001047,2]
[323561480,1714086638075,-368.05,0.0001047,2]
[323561482,1714086638084,-408.61554877,0.00010491,2]
[323561483,1714086638094,-377.91572107,0.00010491,2]
[323561484,1714086638104,-179.7000076,0.00010491,2]
[323561485,1714086638113,-179.7000076,0.00010491,2]
[323561486,1714086638122,-680.4189447,0.00010539,2]
[323561487,1714086638131,-814.13331328,0.00010548,2]
[323561488,1714086638141,-1000.0,0.00010548,2]
[323561489,1714086638151,-547.73345443,0.00010548,2]
[323561490,1714086638163,-254025.5960363,0.0001055,2]
[323561491,1714086638172,-124013.79580716,0.00010552,2]
[323561492,1714086638181,-99333.8381,0.00010552,2]
[323561493,1714086638191,-200.0,0.000106,3]
[323561494,1714086638200,-157.47,0.000106,2]
[323561495,1714086638209,-157.47,0.00010653,2]
[323561496,1714086638218,-3074.6922066,0.00010675,2]
[323561497,1714086638227,-500.0,0.000107,3]
[323561498,1714086638237,-700.0,0.000108,3]
[323561499,1714086638246,-358.9104,0.00010858,2]
[323561500,1714086638255,-10000.0,0.00010858,2]
[323561501,1714086638265,-3074.6922066,0.00010897,2]
[323561502,1714086638275,-1000.0,0.000109,3]
[323561503,1714086638284,-500.0,0.00010958,2]
[323561504,1714086638293,-500.0,0.00010958,2]
[323561505,1714086638303,-500.0,0.00010958,2]
[323561506,1714086638313,-500.0,0.00010958,2]
[323561507,1714086638323,-913.21,0.00010958,2]
[323561508,1714086638334,-500.0,0.00010958,2]
[323561509,1714086638346,-500.0,0.00010958,2]
[323561510,1714086638356,-500.0,0.00010958,2]
[323561511,1714086638378,-500.0,0.00010958,2]
[323561512,1714086638387,-500.0,0.00010958,2]
[323561513,1714086638397,-500.0,0.00010958,2]
[323561514,1714086638406,-500.0,0.00010958,2]
[323561515,1714086638415,-266.2619755,0.00010958,2]
[323561516,1714086638426,-796.35,0.00010958,2]
[323561517,1714086638435,-500.0,0.00010958,2]
[323561518,1714086638445,-500.0,0.00010958,2]
[323561519,1714086638454,-500.0,0.00010958,2]
[323561520,1714086638463,-500.0,0.00010958,2]
[323561521,1714086638473,-809.18,0.00010958,2]
[323561522,1714086638483,-258.4555924,0.00010958,2]
[323561523,1714086638492,-500.0,0.00010958,2]
[323561524,1714086638502,-500.0,0.00010958,2]
[323561525,1714086638512,-500.0,0.00010958,2]
[323561526,1714086638521,-500.0,0.00010958,2]
[323561527,1714086638530,-500.0,0.00010958,2]
[323561528,1714086638540,-958.19,0.00010958,2]
[323561529,1714086638549,-500.0,0.00010958,2]
[323561530,1714086638558,-500.0,0.00010958,2]
[323561531,1714086638568,-500.0,0.00010958,2]
[323561532,1714086638577,-528.21,0.00010958,2]
[323561533,1714086638587,-500.0,0.00010958,2]
[323561534,1714086638596,-537.2,0.00010958,2]
[323561535,1714086638606,-500.0,0.00010958,2]
[323561536,1714086638615,-500.0,0.00010958,2]
[323561537,1714086638624,-500.0,0.00010958,2]
[323561538,1714086638633,-500.0,0.00010958,2]
[323561539,1714086638643,-500.0,0.00010958,2]
[323561540,1714086638652,-500.0,0.00010958,2]
[323561541,1714086638662,-500.0,0.00010958,2]
[323561542,1714086638671,-500.0,0.00010958,2]
[323561543,1714086638686,-500.0,0.00010958,2]
[323561544,1714086638696,-500.0,0.00010958,2]
[323561545,1714086638705,-1026.32,0.00010958,2]
[323561546,1714086638714,-500.0,0.00010958,2]
[323561547,1714086638723,-500.0,0.00010958,2]
[323561548,1714086638732,-500.0,0.00010958,2]
[323561549,1714086638742,-748.34,0.00010958,2]
[323561550,1714086638751,-500.0,0.00010958,2]
[323561551,1714086638761,-500.0,0.00010958,2]
[323561552,1714086638770,-500.0,0.00010958,2]
[323561553,1714086638780,-500.0,0.00010958,2]
[323561554,1714086638789,-500.0,0.00010958,2]
[323561555,1714086638799,-500.0,0.00010958,2]
[323561556,1714086638808,-500.0,0.00010958,2]
[323561557,1714086638818,-500.0,0.00010958,2]
[323561558,1714086638828,-500.0,0.00010958,2]
[323561559,1714086638838,-500.0,0.00010958,2]
[323561560,1714086638848,-500.0,0.00010958,2]
[323561561,1714086638857,-500.0,0.00010958,2]
[323561562,1714086638866,-500.0,0.00010958,2]
[323561563,1714086638875,-500.0,0.00010958,2]
[323561564,1714086638884,-500.0,0.00010958,2]
[323561565,1714086638894,-500.0,0.00010958,2]
[323561566,1714086638902,-500.0,0.00010958,2]
[323561567,1714086638912,-500.0,0.00010958,2]
[323561568,1714086638922,-528.45,0.00010958,2]
[323561569,1714086638935,-500.0,0.00010958,2]
[323561570,1714086638945,-500.0,0.00010958,2]
[323561571,1714086638954,-500.0,0.00010958,2]
[323561572,1714086638964,-500.0,0.00010958,2]
[323561573,1714086638973,-527.52,0.00010958,2]
[323561574,1714086638983,-500.0,0.00010958,2]
[323561575,1714086638992,-500.0,0.00010958,2]
[323561576,1714086639002,-500.0,0.00010958,2]
[323561577,1714086639011,-500.0,0.00010958,2]
[323561578,1714086639020,-500.0,0.00010958,2]
[323561579,1714086639029,-502.98331727,0.00010958,2]
[323561580,1714086639039,-500.0,0.00010958,2]
[323561581,1714086639048,-500.0,0.00010958,2]
[323561582,1714086639057,-1265.36,0.00010958,2]
[323561583,1714086639066,-501.9350165,0.00010958,2]
[323561584,1714086639076,-500.0,0.00010958,2]
[323561585,1714086639086,-500.0,0.00010958,2]
[323561586,1714086639096,-500.0,0.00010958,2]
[323561587,1714086639107,-500.0,0.00010958,2]
[323561588,1714086639117,-500.0,0.00010958,2]
[323561589,1714086639127,-503.35597589,0.00010958,2]
[323561590,1714086639136,-500.0,0.00010958,2]
[323561591,1714086639146,-500.0,0.00010958,2]
[323561592,1714086639156,-500.0,0.00010958,2]
[323561593,1714086639166,-556.71524246,0.00010958,2]
[323561594,1714086639176,-500.0,0.00010958,2]
[323561595,1714086639186,-500.0,0.00010958,2]
[323561596,1714086639195,-500.0,0.00010958,2]
[323561597,1714086639204,-500.0,0.00010958,2]
[323561598,1714086639214,-500.0,0.00010958,2]
[323561599,1714086639224,-558.24,0.00010958,2]
[323561600,1714086639234,-500.0,0.00010958,2]
[323561601,1714086639243,-500.0,0.00010958,2]
[323561602,1714086639253,-500.0,0.00010958,2]
[323561603,1714086639262,-500.0,0.00010958,2]
[323561604,1714086639272,-500.0,0.00010958,2]
[323561605,1714086639282,-500.0,0.00010958,2]
[323561606,1714086639291,-500.0,0.00010958,2]
[323561607,1714086639301,-635.57,0.00010958,2]
[323561608,1714086639310,-500.0,0.00010958,2]
[323561609,1714086639321,-500.0,0.00010958,2]
[323561610,1714086639331,-153.41707949,0.00010958,2]
[323561611,1714086639342,-500.0,0.00010958,2]
[323561612,1714086639352,-500.0,0.00010958,2]
[323561613,1714086639362,-500.0,0.00010958,2]
[323561614,1714086639373,-347.70572422,0.00010958,2]
[323561615,1714086639382,-500.0,0.00010958,2]
[323561616,1714086639392,-500.0,0.00010958,2]
[323561617,1714086639401,-500.0,0.00010958,2]
[323561618,1714086639412,-500.0,0.00010958,2]
[323561619,1714086639423,-500.0,0.00010958,2]
[323561620,1714086639435,-500.0,0.00010958,2]
[323561621,1714086639445,-500.0,0.00010958,2]
[323561622,1714086639455,-500.0,0.00010958,2]
[323561623,1714086639464,-500.0,0.00010958,2]
[323561624,1714086639473,-500.0,0.00010958,2]
[323561625,1714086639482,-500.0,0.00010958,2]
[323561626,1714086639491,-500.0,0.00010958,2]
[323561627,1714086639501,-500.0,0.00010958,2]
[323561628,1714086639510,-500.0,0.00010958,2]
[323561629,1714086639519,-500.0,0.00010958,2]
[323561630,1714086639528,-500.0,0.00010958,2]
[323561631,1714086639537,-500.0,0.00010958,2]
[323561632,1714086639546,-500.0,0.00010958,2]
[323561633,1714086639555,-500.0,0.00010958,2]
[323561634,1714086639564,-500.0,0.00010958,2]
[323561635,1714086639573,-500.0,0.00010958,2]
[323561636,1714086639582,-500.0,0.00010958,2]
[323561637,1714086639591,-500.0,0.00010958,2]
[323561638,1714086639600,-607.24,0.00010958,2]
[323561639,1714086639611,-449.96811448,0.00010958,2]
[323561640,1714086639620,-501.82609453,0.00010958,2]
[323561642,1714086639631,-506.71028523,0.00010958,2]
[323561644,1714086639640,-500.0,0.00010958,2]
[323561645,1714086639651,-500.0,0.00010958,2]
[323561646,1714086639661,-775.97,0.00010958,2]
[323561647,1714086639670,-500.0,0.00010958,2]
[323561648,1714086639682,-500.0,0.00010958,2]
[323561649,1714086639691,-500.0,0.00010958,2]
[323561650,1714086639701,-501.77714958,0.00010958,2]
[323561651,1714086639711,-500.0,0.00010958,2]
[323561652,1714086639721,-500.0,0.00010958,2]
[323561653,1714086639731,-500.0,0.00010958,2]
[323561654,1714086639740,-500.0,0.00010958,2]
[323561655,1714086639750,-500.0,0.00010958,2]
[323561656,1714086639760,-500.0,0.00010958,2]
[323561657,1714086639769,-500.0,0.00010958,2]
[323561658,1714086639778,-500.0,0.00010958,2]
[323561659,1714086639788,-500.0,0.00010958,2]
[323561660,1714086639797,-500.0,0.00010958,2]
[323561661,1714086639806,-500.0,0.00010958,2]
[323561662,1714086639816,-500.0,0.00010958,2]
[323561663,1714086640075,-500.0,0.00010958,2]